[Event "RLP-ch Rapid 2024"]
[Site "Landau"]
[Date "2024.05.04"]
[Round "6.4"]
[White "Lang, Torsten"]
[Black "Lebzak, Jaroslav"]
[Result "1/2-1/2"]
[ECO "D02"]
[WhiteElo "2299"]
[BlackElo "2141"]
[Annotator "NA RC"]
[PlyCount "127"]
[EventDate "2024.05.03"]
[EventType "swiss"]
[EventCountry "GER"]
[SourceTitle "playchess.com"]
[Source "ChessBase"]
[SourceQuality "1"]
[TimeControl "900+5"]

1. d4 {[%emt 0:00:03]} d5 {[%emt 0:00:01]} 2. Bf4 {[%emt 0:00:03]} c5 {[%emt 0:00:05]} 3. e3 {[%emt 0:00:05]} Nf6 {[%emt 0:00:04]} 4. c3 {[%emt 0:00:03]} Nc6 {[%emt 0:00:04]} 5. Nf3 {[%emt 0:00:19]} Qb6 {[%emt 0:00:04]} 6. Qb3 {[%emt 0:00:06]} c4 {[%emt 0:00:03]} 7. Qc2 {[%emt 0:00:01]} Bf5 {[%emt 0:00:05]} 8. Qc1 {[%emt 0:00:02]} e6 {[%emt 0:00:02]} 9. Nbd2 {[%emt 0:00:03]} h6 {[%emt 0:00:04]} 10. Be2 {[%emt 0:00:03]} Be7 {[%emt 0:00:02]} 11. O-O {[%emt 0:00:04]} O-O {[%emt 0:00:10]} 12. Re1 {[%emt 0:00:02]} Qd8 {[%emt 0:00:48]} 13. Ne5 {[%emt 0:00:26]} Bd6 {[%emt 0:00:47]} 14. Nxc6 {[%emt 0:00:43]} bxc6 {[%emt 0:00:08]} 15. Bxd6 {[%emt 0:00:09]} Qxd6 {[%emt 0:00:03]} 16. b3 {[%emt 0:00:51]} cxb3 {[%emt 0:00:20]} 17. Nxb3 {[%emt 0:00:02]} Nd7 {[%emt 0:01:14]} 18. c4 {[%emt 0:00:27]} a5 {[%emt 0:00:57]} 19. c5 {[%emt 0:02:28]} Qc7 {[%emt 0:00:32]} 20. Qc3 {[%emt 0:00:49]} Rfb8 {[%emt 0:02:03]} 21. Nc1 {[%emt 0:00:49]} Nf6 {[%emt 0:00:26]} 22. f3 {[%emt 0:00:14]} Nd7 {[%emt 0:00:54]} 23. Bd3 {[%emt 0:00:05]} Bxd3 {[%emt 0:00:31]} 24. Nxd3 {[%emt 0:00:01]} Rb5 {[%emt 0:00:14]} 25. Rab1 {[%emt 0:00:45]} Rab8 {[%emt 0:00:29]} 26. Rxb5 {[%emt 0:00:39]} Rxb5 {[%emt 0:00:12]} 27. Rd1 {[%emt 0:01:54]} Nb8 {[%emt 0:00:55]} 28. e4 {[%emt 0:00:37]} dxe4 {[%emt 0:00:30]} 29. fxe4 {[%emt 0:00:01]} Nd7 {[%emt 0:00:09]} 30. a4 {[%emt 0:00:16]} Rb8 {[%emt 0:00:08]} 31. Rf1 {[%emt 0:00:13]} Nf6 {[%emt 0:00:17]} 32. Qe1 {[%emt 0:01:45]} Rd8 {[%emt 0:00:57]} 33. e5 {[%emt 0:00:34]} Nd5 {[%emt 0:00:34]} 34. Nb2 {[%emt 0:00:39]} Ne7 {[%emt 0:00:19]} 35. Nc4 {[%emt 0:00:37]} Rxd4 {[%emt 0:00:27]} 36. Nd6 {[%emt 0:00:03]} Nf5 {[%emt 0:00:08]} 37. Qb1 {[%emt 0:02:09]} Qa7 {[%emt 0:01:03]} 38. Kh1 {[%emt 0:00:00]} Rxa4 {[%emt 0:00:21]} 39. Nxf5 {[%emt 0:00:00]} exf5 {[%emt 0:00:04]} 40. Qxf5 {[%emt 0:00:00]} Qe7 {[%emt 0:01:30]} 41. Qc8+ {[%emt 0:00:00]} Kh7 {[%emt 0:00:04]} 42. Qxc6 {[%emt 0:00:00]} Rc4 {[%emt 0:00:25]} 43. Qd6 {[%emt 0:00:00]} Qxd6 {[%emt 0:00:07]} 44. cxd6 {[%emt 0:00:00]} Rd4 {[%emt 0:00:02]} 45. g3 {[%emt 0:00:16]} Kg6 {[%emt 0:00:05]} 46. Kg2 {[%emt 0:00:02]} Rd5 {[%emt 0:00:10]} 47. Rf4 {[%emt 0:00:20]} Rxe5 {[%emt 0:00:11]} 48. Rd4 {[%emt 0:00:02]} Re8 {[%emt 0:00:06]} 49. Ra4 {[%emt 0:00:12]} Rd8 {[%emt 0:00:02]} 50. Rxa5 {[%emt 0:00:01]} Rxd6 {[%emt 0:00:02]} 51. Kf3 {[%emt 0:00:03]} Rd3+ {[%emt 0:00:02]} 52. Kg2 {[%emt 0:00:02]} Rb3 {[%emt 0:00:01]} 53. Rc5 {[%emt 0:00:01]} f6 {[%emt 0:00:05]} 54. Ra5 {[%emt 0:00:02]} Rc3 {[%emt 0:00:07]} 55. Rb5 {[%emt 0:00:01]} Rc2+ {[%emt 0:00:12]} 56. Kh3 {[%emt 0:00:01]} f5 {[%emt 0:00:08]} 57. Ra5 {[%emt 0:00:01]} Kf6 {[%emt 0:00:07]} 58. Ra6+ {[%emt 0:00:05]} Kf7 {[%emt 0:00:03]} 59. Ra5 {[%emt 0:00:02]} Rf2 {[%emt 0:00:05]} 60. Ra7+ {[%emt 0:00:17]} Kg8 {[%emt 0:00:05]} 61. Ra8+ {[%emt 0:00:21]} Kf7 {[%emt 0:00:04]} 62. Ra7+ {[%emt 0:00:02]} Kf6 {[%emt 0:00:03]} 63. Ra6+ {[%emt 0:00:02]} Ke5 {[%emt 0:00:02]} 64. Rg6 {[%emt 0:00:02]} 1/2-1/2

[Event "RLP-ch Rapid 2024"]
[Site "Landau"]
[Date "2024.05.04"]
[Round "6.5"]
[White "Bender, Tim"]
[Black "Muranyi, Karl-Jasmin"]
[Result "0-1"]
[ECO "D15"]
[WhiteElo "1850"]
[BlackElo "2338"]
[Annotator "TA"]
[PlyCount "112"]
[EventDate "2024.05.03"]
[EventType "swiss"]
[EventCountry "GER"]
[SourceTitle "playchess.com"]
[Source "ChessBase"]
[SourceQuality "1"]
[TimeControl "900+5"]

{[%evp 10,112,25,0,10,11,18,14,16,22,21,12,20,22,14,14,16,16,27,0,0,0,0,9,4,0,0,0,0,-79,-97,-229,-232,-231,-233,-225,-231,-213,-211,-218,-205,-267,-263,-250,-260,-260,-258,-260,-254,-260,-260,-253,-253,-344,-343,-372,-366,-361,-351,-396,-391,-372,-293,-360,-269,-493,-451,-536,-498,-857,-795,-1659,-1227,-5616,-2147,-29981,-29982,-29983,-29980,-29984,-29973,-29973,-29974,-29973,-29975,-29975,-29976,-29976,-29976,-29976,-29977,-29979,-29980,-29983,-29981,-29981,-29982,-29982,-29980,-29989,-29990,-29997,-29998,-29998,-29999]} 1. d4 {[%emt 0:00:03]} d5 {[%emt 0:00:02]} 2. c4 {[%emt 0:00:01]} c6 {[%emt 0:00:01]} 3. cxd5 {[%emt 0:00:04]} cxd5 {[%emt 0:00:01]} 4. Nf3 {[%emt 0:00:22]} Nf6 {[%emt 0:00:04]} 5. Nc3 {[%emt 0:00:14]} a6 {[%emt 0:00:02]} 6. Qb3 {[%emt 0:00:18]} e6 {[%emt 0:00:09]} 7. Bg5 {[%emt 0:00:03]} Be7 {[%emt 0:00:14]} 8. e3 {[%emt 0:00:12]} Nbd7 {[%emt 0:00:10] The position is equal.} 9. Bd3 {[%emt 0:00:27]} b5 {[%emt 0:00:11]} 10. a3 {[%emt 0:00:18]} Bb7 {[%emt 0:00:09]} 11. O-O {[%emt 0:01:30]} O-O {[%emt 0:00:06]} 12. h3 {[%emt 0:00:34]} h6 {[%emt 0:00:01]} 13. Bf4 {[%emt 0:00:07]} Rc8 {[%emt 0:00:24]} 14. Ne5 {[%emt 0:00:50]} Nxe5 {[%emt 0:00:16]} 15. Bxe5 {[%emt 0:00:05]} Nd7 {[%emt 0:00:06][%cal Bf6d7,Bd7b6,Bb6c4][%mdl 32] Threatens to win with ...Nxe5.} 16. Bg3 {[%emt 0:00:11]} Nb6 {[%emt 0:00:04]} 17. Rac1 {[%emt 0:00:25]} Nc4 {[%emt 0:00:06]} 18. Rfd1 {[%emt 0:01:04] Repels Nd2} Bc6 {[%emt 0:02:26]} 19. a4 {[%emt 0:01:25]} (19. Qc2 $11) 19... bxa4 $17 {[%emt 0:00:08]} 20. Nxa4 {[%emt 0:00:12] This move loses the game for White.} (20. Qc2 $17) 20... Bxa4 $19 {[%emt 0:00:02]} 21. Qxa4 {[%emt 0:00:14]} Nxb2 {[%emt 0:00:02]} 22. Qxa6 {[%emt 0:02:23]} Nxd1 {[%emt 0:00:12]} 23. Rxd1 {[%emt 0:00:10]} Ra8 {[%emt 0:00:42]} 24. Qc6 {[%emt 0:00:33]} Qc8 {[%emt 0:00:31]} 25. Rc1 {[%emt 0:00:30]} Qxc6 {[%emt 0:00:09]} 26. Rxc6 {[%emt 0:00:01]} Rfc8 {[%emt 0:00:03]} 27. Rb6 {[%emt 0:00:29]} Rc3 {[%emt 0:00:18]} 28. Be2 {[%emt 0:00:37]} Rc2 {[%emt 0:00:16]} 29. Bf3 {[%emt 0:00:27]} Bd8 {[%emt 0:00:21]} 30. Rb7 {[%emt 0:00:10]} Rac8 {[%emt 0:00:00]} 31. Kh2 {[%emt 0:00:21]} Bc7 {[%emt 0:00:09]} 32. Bxc7 {[%emt 0:00:23]} R8xc7 {[%emt 0:00:01]} ({Don't play} 32... R2xc7 33. Rxc7 Rxc7 34. Kg3 $19) 33. Rxc7 {[%emt 0:00:01]} Rxc7 {[%emt 0:00:02][%mdl 4096] Endgame. KR-KB} 34. g3 {[%emt 0:00:39]} Kf8 {[%emt 0:00:01]} 35. Kg2 {[%emt 0:00:00]} Ke7 {[%emt 0:00:01]} 36. h4 {[%emt 0:00:03]} Kd6 {[%emt 0:00:05] Hoping for ...f6.} 37. g4 $2 {[%emt 0:00:08]} (37. Bh5 {was called for.}) 37... f6 {[%emt 0:00:01]} 38. Kg3 {[%emt 0:00:02]} e5 {[%emt 0:00:01]} 39. g5 {[%emt 0:00:10]} (39. dxe5+ $142 fxe5 40. g5) 39... hxg5 {[%emt 0:00:22] [#] Strongly threatening ...exd4.} 40. hxg5 {[%emt 0:00:01]} exd4 {[%emt 0:00:03]} 41. gxf6 {[%emt 0:00:22]} dxe3 {[%emt 0:00:48]} (41... d3 $142 42. e4 d4 (42... gxf6 $2 43. exd5 Ke5 44. Bd1 $19)) 42. f7 {[%emt 0:00:30]} Rxf7 {[%emt 0:00:09] Black mates.} 43. fxe3 {[%emt 0:00:02]} Ke5 {[%emt 0:00:10]} 44. Kf2 {[%emt 0:00:14]} Ra7 {[%emt 0:00:10]} 45. Bh5 {[%emt 0:00:20]} Ra3 {[%emt 0:00:10]} 46. Bg6 {[%emt 0:00:09]} d4 {[%emt 0:00:10]} 47. exd4+ {[%emt 0:00:11]} Kxd4 {[%emt 0:00:01]} 48. Kg2 {[%emt 0:00:18]} Ke5 {[%emt 0:00:01]} 49. Kf2 {[%emt 0:00:11]} Kf4 {[%emt 0:00:01]} 50. Be8 {[%emt 0:00:38]} Ra2+ {[%emt 0:00:03]} 51. Kg1 {[%emt 0:00:04]} g5 {[%emt 0:00:04]} 52. Bc6 {[%emt 0:00:03]} Kg3 {[%emt 0:00:07][%cal Ra2a1]} 53. Kf1 {[%emt 0:00:04]} Rf2+ {[%emt 0:00:07]} 54. Kg1 {[%emt 0:00:13]} Rc2 {[%emt 0:00:01][%cal Rc2c1]} 55. Bb5 {[%emt 0:00:09]} Rc1+ {[%emt 0:00:03]} 56. Bf1 {[%emt 0:00:02]} g4 {[%emt 0:01:05] Weighted Error Value: White=0.67/Black=0.17 (very precise) .  Mistake:       	White=4     	---        Inaccurate:     	White=3     	---        OK:         	White=10    	Black=16} 0-1

[Event "RLP-ch Rapid 2024"]
[Site "Landau"]
[Date "2024.05.04"]
[Round "6.6"]
[White "Hinrichs, Paul"]
[Black "Louis, Volker"]
[Result "1-0"]
[ECO "B07"]
[WhiteElo "2255"]
[BlackElo "2022"]
[Annotator "NA RC"]
[PlyCount "91"]
[EventDate "2024.05.03"]
[EventType "swiss"]
[EventCountry "GER"]
[SourceTitle "playchess.com"]
[Source "ChessBase"]
[SourceQuality "1"]
[TimeControl "900+5"]

1. d4 {[%emt 0:00:03]} Nf6 {[%emt 0:00:02]} 2. g3 {[%emt 0:00:00]} g6 {[%emt 0:00:08]} 3. Bg2 {[%emt 0:00:02]} Bg7 {[%emt 0:00:01]} 4. e4 {[%emt 0:00:01]} d6 {[%emt 0:00:02]} 5. Ne2 {[%emt 0:00:01]} O-O {[%emt 0:00:02]} 6. Nbc3 {[%emt 0:00:01]} a6 {[%emt 0:15:20]} 7. a4 {[%emt 0:00:02]} Nc6 {[%emt 0:00:00]} 8. h3 {[%emt 0:00:03]} e5 {[%emt 0:00:00]} 9. Be3 {[%emt 0:00:02]} Rb8 {[%emt 0:00:00]} 10. a5 {[%emt 0:00:21]} b6 {[%emt 0:00:00]} 11. axb6 {[%emt 0:00:05]} cxb6 {[%emt 0:00:00]} 12. O-O {[%emt 0:00:09]} b5 {[%emt 0:00:00]} 13. d5 {[%emt 0:00:39]} Ne7 {[%emt 0:00:00]} 14. Nc1 {[%emt 0:00:13]} a5 {[%emt 0:00:00]} 15. Nb3 {[%emt 0:00:37]} a4 {[%emt 0:00:00]} 16. Nc1 {[%emt 0:00:02]} Qc7 {[%emt 0:00:00]} 17. Nd3 {[%emt 0:00:40]} Qc4 {[%emt 0:00:00]} 18. f3 {[%emt 0:00:14]} Bd7 {[%emt 0:00:00]} 19. Qd2 {[%emt 0:00:40]} Nh5 {[%emt 0:00:00]} 20. Kh2 {[%emt 0:00:24]} f5 {[%emt 0:00:00]} 21. Bg1 {[%emt 0:01:31]} Rbc8 {[%emt 0:00:00]} 22. Rfc1 {[%emt 0:01:19]} fxe4 {[%emt 0:00:00]} 23. fxe4 {[%emt 0:00:20]} Kh8 {[%emt 0:00:00]} 24. Nd1 {[%emt 0:00:40]} Nf6 {[%emt 0:00:00]} 25. Ne3 {[%emt 0:00:39]} Qc7 {[%emt 0:00:00]} 26. Qb4 {[%emt 0:00:09]} Bh6 {[%emt 0:00:00]} 27. Nxe5 {[%emt 0:01:57]} Nexd5 {[%emt 0:00:00]} 28. exd5 {[%emt 0:00:13]} dxe5 {[%emt 0:00:00]} 29. Rf1 {[%emt 0:00:01]} Bg7 {[%emt 0:00:00]} 30. c3 {[%emt 0:00:28]} Rce8 {[%emt 0:00:00]} 31. d6 {[%emt 0:00:21]} Qb8 {[%emt 0:00:00]} 32. Nd5 {[%emt 0:00:10]} Nxd5 {[%emt 0:00:40]} 33. Bxd5 {[%emt 0:00:02]} Rf5 {[%emt 0:00:09]} 34. Be4 {[%emt 0:00:09]} Rf6 {[%emt 0:00:03]} 35. Rxf6 {[%emt 0:00:04]} Bxf6 {[%emt 0:00:01]} 36. Rf1 {[%emt 0:00:18]} Kg7 {[%emt 0:00:04]} 37. Be3 {[%emt 0:00:14]} Re6 {[%emt 0:00:01]} 38. Bc5 {[%emt 0:00:17]} Bd8 {[%emt 0:00:11]} 39. Bd5 {[%emt 0:00:25]} Rf6 {[%emt 0:00:01]} 40. Rxf6 {[%emt 0:00:01]} Bxf6 {[%emt 0:00:05]} 41. Qe4 {[%emt 0:00:03]} Qe8 {[%emt 0:00:03]} 42. Qe2 {[%emt 0:00:08]} Qc8 {[%emt 0:00:07]} 43. Bb4 {[%emt 0:00:05]} Bxh3 {[%emt 0:00:03]} 44. Qxb5 {[%emt 0:00:06]} Bd7 {[%emt 0:00:24]} 45. Qb7 {[%emt 0:00:36]} Qe8 {[%emt 0:00:05]} 46. Bc6 {[%emt 0:00:17]} 1-0

[Event "RLP-ch Rapid 2024"]
[Site "Landau"]
[Date "2024.05.04"]
[Round "6.7"]
[White "Commercon, Simon"]
[Black "Meuer, David"]
[Result "1-0"]
[ECO "E51"]
[WhiteElo "2204"]
[BlackElo "2067"]
[Annotator "NA RC"]
[PlyCount "103"]
[EventDate "2024.05.03"]
[EventType "swiss"]
[EventCountry "GER"]
[SourceTitle "playchess.com"]
[Source "ChessBase"]
[SourceQuality "1"]
[TimeControl "900+5"]

1. d4 {[%emt 0:00:08]} e6 {[%emt 0:00:01]} 2. Nf3 {[%emt 0:00:07]} Nf6 {[%emt 0:00:02]} 3. c4 {[%emt 0:00:04]} d5 {[%emt 0:00:02]} 4. Nc3 {[%emt 0:00:02]} Bb4 {[%emt 0:00:02]} 5. e3 {[%emt 0:00:05]} O-O {[%emt 0:00:08]} 6. a3 {[%emt 0:00:02]} Bxc3+ {[%emt 0:00:04]} 7. bxc3 {[%emt 0:00:02]} c5 {[%emt 0:00:04]} 8. cxd5 {[%emt 0:01:25]} exd5 {[%emt 0:00:26]} 9. Bd3 {[%emt 0:00:09]} Nc6 {[%emt 0:00:13]} 10. O-O {[%emt 0:00:04]} Re8 {[%emt 0:01:01]} 11. dxc5 {[%emt 0:01:38]} Qe7 {[%emt 0:00:09]} 12. Rb1 {[%emt 0:00:10]} Qxc5 {[%emt 0:00:08]} 13. Rb5 {[%emt 0:00:06]} Qe7 {[%emt 0:00:26]} 14. Nd4 {[%emt 0:00:56]} Qe5 {[%emt 0:01:22]} 15. c4 {[%emt 0:06:12]} a6 {[%emt 0:01:22]} 16. Nf3 {[%emt 0:01:31]} Qe7 {[%emt 0:00:39]} 17. Rxd5 {[%emt 0:01:02]} Nxd5 {[%emt 0:00:11]} 18. cxd5 {[%emt 0:00:01]} Ne5 {[%emt 0:00:20]} 19. Nxe5 {[%emt 0:00:02]} Qxe5 {[%emt 0:00:01]} 20. Qb3 {[%emt 0:00:11]} b5 {[%emt 0:01:54]} 21. Bb2 {[%emt 0:00:03]} Qg5 {[%emt 0:01:00]} 22. Rd1 {[%emt 0:00:25]} Bg4 {[%emt 0:01:26]} 23. Rd2 {[%emt 0:00:31]} Rad8 {[%emt 0:00:25]} 24. Bf1 {[%emt 0:00:18]} Rd6 {[%emt 0:00:10]} 25. Qc3 {[%emt 0:00:21]} Bf3 {[%emt 0:01:31]} 26. h4 {[%emt 0:00:38]} Qg6 {[%emt 0:00:42]} 27. Qc5 {[%emt 0:00:50]} Red8 {[%emt 0:00:12]} 28. Be5 {[%emt 0:00:11]} R6d7 {[%emt 0:00:11]} 29. d6 {[%emt 0:00:02]} Bb7 {[%emt 0:00:41]} 30. Bg3 {[%emt 0:00:01]} Rc8 {[%emt 0:00:31]} 31. Qe5 {[%emt 0:00:05]} Qb1 {[%emt 0:00:25]} 32. f3 {[%emt 0:00:09]} Qc1 {[%emt 0:00:31]} 33. Rd4 {[%emt 0:00:09]} Qc3 {[%emt 0:00:57]} 34. Qf4 {[%emt 0:00:02]} Re8 {[%emt 0:00:05]} 35. Bf2 {[%emt 0:00:04]} Qxa3 {[%emt 0:00:07]} 36. e4 {[%emt 0:00:03]} Red8 {[%emt 0:00:11]} 37. e5 {[%emt 0:00:02]} b4 {[%emt 0:00:10]} 38. Rxb4 {[%emt 0:00:03]} Bd5 {[%emt 0:00:05]} 39. Rd4 {[%emt 0:00:03]} Be6 {[%emt 0:00:01]} 40. h5 {[%emt 0:00:01]} h6 {[%emt 0:00:01]} 41. g4 {[%emt 0:00:02]} Rb8 {[%emt 0:00:08]} 42. Bc4 {[%emt 0:00:02]} Rb1+ {[%emt 0:00:12]} 43. Kg2 {[%emt 0:00:02]} Bxc4 {[%emt 0:00:15]} 44. Rxc4 {[%emt 0:00:00]} Rd8 {[%emt 0:00:07]} 45. Rc7 {[%emt 0:00:02]} Rf8 {[%emt 0:00:01]} 46. Qd4 {[%emt 0:00:06]} Qb4 {[%emt 0:00:07]} 47. Qxb4 {[%emt 0:00:07]} Rxb4 {[%emt 0:00:01]} 48. d7 {[%emt 0:00:03]} Rbb8 {[%emt 0:00:02]} 49. Bc5 {[%emt 0:00:02]} Rfd8 {[%emt 0:00:04]} 50. Be7 {[%emt 0:00:00]} a5 {[%emt 0:00:02]} 51. Bxd8 {[%emt 0:00:02]} Rxd8 {[%emt 0:00:01]} 52. Rc8 {[%emt 0:00:01]} 1-0

[Event "RLP-ch Rapid 2024"]
[Site "Landau"]
[Date "2024.05.04"]
[Round "6.8"]
[White "Bruch, Jochen"]
[Black "Lutterbach, Jakob"]
[Result "1/2-1/2"]
[ECO "B10"]
[WhiteElo "2181"]
[BlackElo "1858"]
[Annotator "NA RC"]
[PlyCount "139"]
[EventDate "2024.05.03"]
[EventType "swiss"]
[EventCountry "GER"]
[SourceTitle "playchess.com"]
[Source "ChessBase"]
[SourceQuality "1"]
[TimeControl "900+5"]

1. Nf3 {[%emt 0:00:00]} d5 {[%emt 0:00:03]} 2. g3 {[%emt 0:00:02]} Nd7 {[%emt 0:00:09]} 3. Bg2 {[%emt 0:00:04]} e5 {[%emt 0:00:02]} 4. d3 {[%emt 0:00:01]} Ngf6 {[%emt 0:00:15]} 5. O-O {[%emt 0:00:03]} Bd6 {[%emt 0:00:35]} 6. Nbd2 {[%emt 0:00:02]} O-O {[%emt 0:00:03]} 7. e4 {[%emt 0:00:02]} c6 {[%emt 0:00:10]} 8. c3 {[%emt 0:00:03]} a5 {[%emt 0:00:01]} 9. a4 {[%emt 0:00:02]} Re8 {[%emt 0:00:02]} 10. Qc2 {[%emt 0:00:01]} Qc7 {[%emt 0:00:04]} 11. Re1 {[%emt 0:00:04]} b6 {[%emt 0:01:09]} 12. Nf1 {[%emt 0:00:05]} Ba6 {[%emt 0:00:26]} 13. Bg5 {[%emt 0:02:35]} h6 {[%emt 0:00:25]} 14. Bxf6 {[%emt 0:00:41]} Nxf6 {[%emt 0:00:02]} 15. Ne3 {[%emt 0:00:03]} Rad8 {[%emt 0:00:51]} 16. Rad1 {[%emt 0:00:17]} Bf8 {[%emt 0:02:08]} 17. Nf5 {[%emt 0:01:17]} g6 {[%emt 0:00:25]} 18. Ne3 {[%emt 0:00:08]} Bg7 {[%emt 0:00:25]} 19. Rd2 {[%emt 0:01:38]} dxe4 {[%emt 0:02:37]} 20. dxe4 {[%emt 0:00:05]} Nd7 {[%emt 0:00:10]} 21. Bf1 {[%emt 0:00:29]} Bxf1 {[%emt 0:00:05]} 22. Rxf1 {[%emt 0:00:08]} Nc5 {[%emt 0:00:16]} 23. Rfd1 {[%emt 0:00:11]} Rxd2 {[%emt 0:00:08]} 24. Rxd2 {[%emt 0:00:19]} Rd8 {[%emt 0:00:02]} 25. Rxd8+ {[%emt 0:01:47]} Qxd8 {[%emt 0:00:01]} 26. b4 {[%emt 0:00:04]} Nd7 {[%emt 0:01:32]} 27. Qd3 {[%emt 0:00:36]} Qc7 {[%emt 0:00:23]} 28. Qa6 {[%emt 0:00:31]} axb4 {[%emt 0:00:30]} 29. cxb4 {[%emt 0:00:02]} Bf8 {[%emt 0:00:13]} 30. Qc4 {[%emt 0:00:42]} Qd6 {[%emt 0:01:00]} 31. b5 {[%emt 0:00:05]} cxb5 {[%emt 0:01:17]} 32. axb5 {[%emt 0:00:11]} Qc5 {[%emt 0:00:21]} 33. Qd5 {[%emt 0:00:26]} Qxd5 {[%emt 0:00:10]} 34. Nxd5 {[%emt 0:00:09]} Bc5 {[%emt 0:00:30]} 35. Nd2 {[%emt 0:00:24]} f6 {[%emt 0:00:16]} 36. Kg2 {[%emt 0:00:08]} Kf7 {[%emt 0:00:07]} 37. Nc4 {[%emt 0:00:02]} Ke6 {[%emt 0:00:29]} 38. f4 {[%emt 0:00:22]} f5 {[%emt 0:00:35]} 39. Kf3 {[%emt 0:00:40]} fxe4+ {[%emt 0:00:08]} 40. Kxe4 {[%emt 0:00:02]} Bg1 {[%emt 0:00:12]} 41. Nc7+ {[%emt 0:00:13]} Ke7 {[%emt 0:00:03]} 42. Nxe5 {[%emt 0:00:22]} Nxe5 {[%emt 0:00:07]} 43. fxe5 {[%emt 0:00:17]} Bxh2 {[%emt 0:00:04]} 44. g4 {[%emt 0:00:02]} Bg1 {[%emt 0:00:06]} 45. Nd5+ {[%emt 0:00:09]} Ke6 {[%emt 0:00:02]} 46. Nf4+ {[%emt 0:00:02]} Kf7 {[%emt 0:00:02]} 47. Kd5 {[%emt 0:00:06]} Be3 {[%emt 0:00:02]} 48. Nd3 {[%emt 0:00:42]} h5 {[%emt 0:00:03]} 49. gxh5 {[%emt 0:00:16]} gxh5 {[%emt 0:00:01]} 50. Ke4 {[%emt 0:00:01]} Bg1 {[%emt 0:00:20]} 51. Kf5 {[%emt 0:00:03]} Bd4 {[%emt 0:00:06]} 52. Nf4 {[%emt 0:00:05]} h4 {[%emt 0:00:03]} 53. e6+ {[%emt 0:00:01]} Ke8 {[%emt 0:00:05]} 54. Kg4 {[%emt 0:00:50]} Bf2 {[%emt 0:00:03]} 55. Nd5 {[%emt 0:00:05]} Bg3 {[%emt 0:00:06]} 56. e7 {[%emt 0:01:06]} Bd6 {[%emt 0:00:02]} 57. Kxh4 {[%emt 0:00:02]} Bxe7+ {[%emt 0:00:02]} 58. Kg4 {[%emt 0:00:01]} Bc5 {[%emt 0:00:06]} 59. Kf5 {[%emt 0:00:02]} Kd7 {[%emt 0:00:05]} 60. Ke5 {[%emt 0:00:02]} Bd6+ {[%emt 0:00:06]} 61. Kd4 {[%emt 0:00:04]} Bc5+ {[%emt 0:00:01]} 62. Kc4 {[%emt 0:00:01]} Kd6 {[%emt 0:00:09]} 63. Nc3 {[%emt 0:00:02]} Ke6 {[%emt 0:00:11]} 64. Na4 {[%emt 0:00:01]} Bg1 {[%emt 0:00:02]} 65. Nc3 {[%emt 0:00:02]} Bc5 {[%emt 0:00:04]} 66. Ne4 {[%emt 0:00:02]} Bg1 {[%emt 0:00:05]} 67. Nc3 {[%emt 0:00:01]} Bc5 {[%emt 0:00:01]} 68. Ne4 {[%emt 0:00:01]} Bg1 {[%emt 0:00:02]} 69. Nc3 {[%emt 0:00:02]} Bc5 {[%emt 0:00:02]} 70. Ne4 {[%emt 0:00:02]} 1/2-1/2

[Event "RLP-ch Rapid 2024"]
[Site "Landau"]
[Date "2024.05.04"]
[Round "6.9"]
[White "Mader, Lena"]
[Black "Moench, Dorothee"]
[Result "1-0"]
[ECO "A34"]
[WhiteElo "1902"]
[BlackElo "1823"]
[Annotator "NA RC"]
[PlyCount "73"]
[EventDate "2024.05.03"]
[EventType "swiss"]
[EventCountry "GER"]
[SourceTitle "playchess.com"]
[Source "ChessBase"]
[SourceQuality "1"]
[TimeControl "900+5"]

1. c4 {[%emt 0:00:01]} Nf6 {[%emt 0:00:11]} 2. Nf3 {[%emt 0:00:11]} e6 {[%emt 0:00:08]} 3. g3 {[%emt 0:00:02]} c5 {[%emt 0:00:23]} 4. Bg2 {[%emt 0:00:12]} Nc6 {[%emt 0:00:10]} 5. Nc3 {[%emt 0:00:03]} a6 {[%emt 0:00:46]} 6. O-O {[%emt 0:00:05]} d5 {[%emt 0:00:28]} 7. cxd5 {[%emt 0:00:08]} exd5 {[%emt 0:00:09]} 8. d4 {[%emt 0:00:02]} Be6 {[%emt 0:00:08]} 9. Bg5 {[%emt 0:00:25]} Be7 {[%emt 0:00:02]} 10. Rc1 {[%emt 0:00:20]} c4 {[%emt 0:00:57]} 11. Re1 {[%emt 0:01:34]} h6 {[%emt 0:00:17]} 12. Bxf6 {[%emt 0:00:33]} Bxf6 {[%emt 0:00:04]} 13. e3 {[%emt 0:00:01]} Qd7 {[%emt 0:00:26]} 14. Na4 {[%emt 0:00:25]} Qc7 {[%emt 0:01:07]} 15. b3 {[%emt 0:00:45]} b5 {[%emt 0:00:29]} 16. Nc5 {[%emt 0:00:40]} Nb4 {[%emt 0:00:27]} 17. a3 {[%emt 0:00:33]} Nc6 {[%emt 0:00:06]} 18. e4 {[%emt 0:01:39]} O-O {[%emt 0:00:22]} 19. Nxe6 {[%emt 0:01:27]} fxe6 {[%emt 0:00:13]} 20. e5 Be7 {[%emt 0:09:52]} 21. Ra1 {[%emt 0:01:06]} a5 {[%emt 0:00:00]} 22. Bh3 {[%emt 0:00:53]} Nd8 {[%emt 0:00:00]} 23. Bg2 {[%emt 0:00:24]} Rc8 {[%emt 0:00:00]} 24. bxc4 {[%emt 0:00:30]} bxc4 {[%emt 0:00:00]} 25. Re2 {[%emt 0:00:14]} Qc6 {[%emt 0:00:00]} 26. Rc2 {[%emt 0:00:24]} Rf7 {[%emt 0:00:00]} 27. Nd2 {[%emt 0:00:41]} a4 {[%emt 0:00:00]} 28. Nxc4 {[%emt 0:00:25]} Qa6 {[%emt 0:00:00]} 29. Ne3 {[%emt 0:00:25]} Rxc2 {[%emt 0:00:00]} 30. Qxc2 {[%emt 0:00:13]} Nc6 {[%emt 0:00:50]} 31. Qd1 {[%emt 0:00:23]} Na5 {[%emt 0:00:00]} 32. Qxa4 {[%emt 0:00:45]} Qe2 {[%emt 0:00:00]} 33. Rf1 {[%emt 0:00:02]} Nc4 {[%emt 0:00:00]} 34. Nxc4 {[%emt 0:00:42]} dxc4 {[%emt 0:00:00]} 35. Qe8+ {[%emt 0:00:03]} Bf8 {[%emt 0:00:00]} 36. Qxe6 {[%emt 0:00:03]} c3 {[%emt 0:00:00]} 37. Bd5 {[%emt 0:01:51]} 1-0